[Event "Titled Tuesday Blitz May 16 Early 2023"]
[White "Fernandez Hernandez, Gerardo"]
[Black "Womacka, Mathias"]
[WhiteFideId "2207400"]
[BlackFideId "4611390"]
[WhiteElo "2157"]
[BlackElo "2377"]
[Result "0-1"]
[Round "04"]
[TimeControl "180+2"]
[Date "2023.05.16"]
[WhiteClock "0:00:00"]
[BlackClock "0:00:53"]

1. e4 {[%clk 0:03:00]}  c5 {[%clk 0:02:59]} 2. d3 {[%clk 0:03:00]}  Nc6 {[%clk 0:02:58]} 3. g3 {[%clk 0:03:00]}  g6 {[%clk 0:02:58]} 4. Bg2 {[%clk 0:03:01]}  Bg7 {[%clk 0:02:59]} 5. f4 {[%clk 0:03:01]}  e6 {[%clk 0:02:58]} 6. Nf3 {[%clk 0:03:02]}  Nge7 {[%clk 0:02:57]} 7. O-O {[%clk 0:03:01]}  O-O {[%clk 0:02:57]} 8. c3 {[%clk 0:03:02]}  b6 {[%clk 0:02:56]} 9. Be3 {[%clk 0:03:01]}  Bb7 {[%clk 0:02:56]} 10. d4 {[%clk 0:03:00]}  cxd4 {[%clk 0:02:40]} 11. cxd4 {[%clk 0:03:01]}  d5 {[%clk 0:02:36]} 12. e5 {[%clk 0:03:01]}  Nf5 {[%clk 0:02:36]} 13. Bf2 {[%clk 0:03:01]}  Rc8 {[%clk 0:02:35]} 14. Nc3 {[%clk 0:02:47]}  Ba6 {[%clk 0:02:31]} 15. Re1 {[%clk 0:02:46]}  Nb4 {[%clk 0:02:30]} 16. Bf1 {[%clk 0:02:44]}  Bxf1 {[%clk 0:02:29]} 17. Rxf1 {[%clk 0:02:44]}  f6 {[%clk 0:02:24]} 18. exf6 {[%clk 0:02:35]}  Bxf6 {[%clk 0:02:25]} 19. Ne5 {[%clk 0:02:35]}  Nc6 {[%clk 0:02:17]} 20. Qd2 {[%clk 0:02:24]}  Nxe5 {[%clk 0:02:10]} 21. fxe5 {[%clk 0:02:18]}  Bg5 {[%clk 0:02:10]} 22. Qe2 {[%clk 0:02:07]}  Qd7 {[%clk 0:02:09]} 23. h4 {[%clk 0:02:03]}  Bh6 {[%clk 0:02:06]} 24. g4 {[%clk 0:02:00]}  Ne7 {[%clk 0:02:06]} 25. Nb5 {[%clk 0:01:42]}  Rc4 {[%clk 0:01:48]} 26. Nd6 {[%clk 0:01:34]}  Rc6 {[%clk 0:01:47]} 27. g5 {[%clk 0:01:32]}  Bg7 {[%clk 0:01:46]} 28. Rac1 {[%clk 0:01:30]}  Nf5 {[%clk 0:01:45]} 29. Nxf5 {[%clk 0:01:22]}  Rxc1 {[%clk 0:01:39]} 30. Nh6+ {[%clk 0:01:09]}  Bxh6 {[%clk 0:01:38]} 31. Rxc1 {[%clk 0:01:09]}  Bg7 {[%clk 0:01:39]} 32. Qc2 {[%clk 0:01:06]}  Qf7 {[%clk 0:01:31]} 33. Qe2 {[%clk 0:00:51]}  h6 {[%clk 0:01:18]} 34. Be3 {[%clk 0:00:42]}  hxg5 {[%clk 0:01:15]} 35. hxg5 {[%clk 0:00:36]}  Qf5 {[%clk 0:01:15]} 36. Rf1 {[%clk 0:00:34]}  Qh3 {[%clk 0:01:05]} 37. Rxf8+ {[%clk 0:00:31]}  Bxf8 {[%clk 0:01:06]} 38. Bd2 {[%clk 0:00:20]}  Be7 {[%clk 0:01:03]} 39. Qg2 {[%clk 0:00:14]}  Qd3 {[%clk 0:00:58]} 40. Kh1 {[%clk 0:00:08]}  Qxd4 {[%clk 0:00:56]} 41. Be1 {[%clk 0:00:01]}  Qxe5 {[%clk 0:00:55]} 42. Bc3 {[%clk 0:00:00]}  Qxg5 {[%clk 0:00:53]} 0-1


[Site "https://www.chess.com"]

[Event "Titled Tuesday Blitz May 16 Early 2023"]
[White "Winkels, Marcel"]
[Black "Fernandez Garcia, Gumersindo"]
[WhiteFideId "1003887"]
[BlackFideId "24516740"]
[WhiteElo "1900"]
[BlackElo "2093"]
[Result "1-0"]
[Round "04"]
[TimeControl "180+2"]
[Date "2023.05.16"]
[WhiteClock "0:01:17"]
[BlackClock "0:00:08"]

1. d4 {[%clk 0:03:00]}  d5 {[%clk 0:00:55]} 2. Nc3 {[%clk 0:02:56]}  Nf6 {[%clk 0:00:52]} 3. Bf4 {[%clk 0:02:56]}  c6 {[%clk 0:00:50]} 4. e3 {[%clk 0:02:55]}  Bf5 {[%clk 0:00:50]} 5. Nf3 {[%clk 0:02:56]}  e6 {[%clk 0:00:49]} 6. Ne5 {[%clk 0:02:56]}  Nbd7 {[%clk 0:00:47]} 7. g4 {[%clk 0:02:54]}  Bg6 {[%clk 0:00:46]} 8. h4 {[%clk 0:02:53]}  h5 {[%clk 0:00:24]} 9. Nxg6 {[%clk 0:02:50]}  fxg6 {[%clk 0:00:25]} 10. g5 {[%clk 0:02:46]}  Ng8 {[%clk 0:00:25]} 11. Bd3 {[%clk 0:02:45]}  Kf7 {[%clk 0:00:23]} 12. Qf3 {[%clk 0:02:44]}  Qe8 {[%clk 0:00:13]} 13. Bd6+ {[%clk 0:02:31]}  Ngf6 {[%clk 0:00:13]} 14. Bxf8 {[%clk 0:02:30]}  Rxf8 {[%clk 0:00:13]} 15. gxf6 {[%clk 0:02:30]}  gxf6 {[%clk 0:00:13]} 16. Rg1 {[%clk 0:02:27]}  Rg8 {[%clk 0:00:13]} 17. O-O-O {[%clk 0:02:22]}  Rg7 {[%clk 0:00:13]} 18. Rg3 {[%clk 0:01:52]}  Kg8 {[%clk 0:00:13]} 19. Rdg1 {[%clk 0:01:48]}  e5 {[%clk 0:00:13]} 20. Bxg6 {[%clk 0:01:45]}  Qe7 {[%clk 0:00:12]} 21. Bxh5 {[%clk 0:01:41]}  Rxg3 {[%clk 0:00:11]} 22. Qxg3+ {[%clk 0:01:40]}  Kh8 {[%clk 0:00:12]} 23. Qg6 {[%clk 0:01:32]}  Qh7 {[%clk 0:00:10]} 24. Qxh7+ {[%clk 0:01:30]}  Kxh7 {[%clk 0:00:11]} 25. Bg4 {[%clk 0:01:30]}  Nf8 {[%clk 0:00:10]} 26. Bf5+ {[%clk 0:01:30]}  Kh6 {[%clk 0:00:10]} 27. dxe5 {[%clk 0:01:25]}  fxe5 {[%clk 0:00:09]} 28. e4 {[%clk 0:01:25]}  d4 {[%clk 0:00:09]} 29. Ne2 {[%clk 0:01:25]}  Re8 {[%clk 0:00:09]} 30. Ng3 {[%clk 0:01:22]}  Re7 {[%clk 0:00:08]} 31. Bc8 {[%clk 0:01:19]}  Rc7 {[%clk 0:00:08]} 32. Nf5+ {[%clk 0:01:19]}  Kh5 {[%clk 0:00:08]} 33. Rg5# {[%clk 0:01:17]} 1-0


[Site "https://www.chess.com"]

[Event "Titled Tuesday Blitz May 16 Early 2023"]
[White "Ciuffoletti, Paolo"]
[Black "Kielinkei"]
[WhiteFideId "807630"]
[WhiteElo "2143"]
[BlackElo "2420"]
[Result "0-1"]
[Round "04"]
[TimeControl "180+2"]
[Date "2023.05.16"]
[WhiteClock "0:00:01"]
[BlackClock "0:00:04"]

1. e4 {[%clk 0:03:00]}  c5 {[%clk 0:03:00]} 2. d4 {[%clk 0:03:00]}  cxd4 {[%clk 0:02:59]} 3. c3 {[%clk 0:03:00]}  Nf6 {[%clk 0:03:00]} 4. e5 {[%clk 0:03:00]}  Nd5 {[%clk 0:03:01]} 5. Qxd4 {[%clk 0:03:00]}  e6 {[%clk 0:02:59]} 6. Bc4 {[%clk 0:03:00]}  Nc6 {[%clk 0:02:59]} 7. Qe4 {[%clk 0:03:00]}  Nb6 {[%clk 0:02:55]} 8. Bb3 {[%clk 0:02:59]}  d6 {[%clk 0:02:50]} 9. exd6 {[%clk 0:02:59]}  Bxd6 {[%clk 0:02:50]} 10. Nf3 {[%clk 0:02:59]}  O-O {[%clk 0:02:37]} 11. Ng5 {[%clk 0:02:56]}  g6 {[%clk 0:02:30]} 12. Qh4 {[%clk 0:02:53]}  h5 {[%clk 0:02:28]} 13. O-O {[%clk 0:02:53]}  Ne5 {[%clk 0:02:07]} 14. Rd1 {[%clk 0:02:39]}  Qc7 {[%clk 0:02:02]} 15. Ne4 {[%clk 0:02:08]}  Be7 {[%clk 0:01:53]} 16. Bg5 {[%clk 0:02:06]}  Nc6 {[%clk 0:01:36]} 17. Bf6 {[%clk 0:01:43]}  Nd5 {[%clk 0:01:02]} 18. Bxd5 {[%clk 0:01:13]}  exd5 {[%clk 0:01:03]} 19. Rxd5 {[%clk 0:00:55]}  Rd8 {[%clk 0:00:32]} 20. Bxe7 {[%clk 0:00:53]}  Nxe7 {[%clk 0:00:27]} 21. Nf6+ {[%clk 0:00:36]}  Kg7 {[%clk 0:00:23]} 22. Rxd8 {[%clk 0:00:27]}  Qxd8 {[%clk 0:00:23]} 23. Na3 {[%clk 0:00:26]}  Nc6 {[%clk 0:00:17]} 24. Nxh5+ {[%clk 0:00:15]}  gxh5 {[%clk 0:00:17]} 25. Qxh5 {[%clk 0:00:16]}  Be6 {[%clk 0:00:14]} 26. Re1 {[%clk 0:00:16]}  Qf6 {[%clk 0:00:08]} 27. Re3 {[%clk 0:00:15]}  Rh8 {[%clk 0:00:08]} 28. Rg3+ {[%clk 0:00:14]}  Kf8 {[%clk 0:00:09]} 29. Qc5+ {[%clk 0:00:13]}  Qe7 {[%clk 0:00:09]} 30. Qe3 {[%clk 0:00:10]}  Rg8 {[%clk 0:00:07]} 31. Rxg8+ {[%clk 0:00:09]}  Kxg8 {[%clk 0:00:08]} 32. Qg3+ {[%clk 0:00:08]}  Kf8 {[%clk 0:00:08]} 33. Nb5 {[%clk 0:00:08]}  Qd7 {[%clk 0:00:07]} 34. h4 {[%clk 0:00:08]}  Qd1+ {[%clk 0:00:05]} 35. Kh2 {[%clk 0:00:08]}  Qg4 {[%clk 0:00:06]} 36. Qd6+ {[%clk 0:00:06]}  Kg7 {[%clk 0:00:07]} 37. g3 {[%clk 0:00:05]}  Qh3+ {[%clk 0:00:06]} 38. Kg1 {[%clk 0:00:05]}  Qf5 {[%clk 0:00:07]} 39. Nd4 {[%clk 0:00:04]}  Nxd4 {[%clk 0:00:06]} 40. Qxd4+ {[%clk 0:00:04]}  Kh7 {[%clk 0:00:06]} 41. Qxa7 {[%clk 0:00:04]}  Qb1+ {[%clk 0:00:07]} 42. Kh2 {[%clk 0:00:04]}  Qxb2 {[%clk 0:00:07]} 43. Qe3 {[%clk 0:00:04]}  Qc2 {[%clk 0:00:06]} 44. h5 {[%clk 0:00:04]}  Qf5 {[%clk 0:00:05]} 45. Qd4 {[%clk 0:00:03]}  Qxh5+ {[%clk 0:00:05]} 46. Kg1 {[%clk 0:00:03]}  Qd5 {[%clk 0:00:04]} 47. Qb4 {[%clk 0:00:02]}  Qd1+ {[%clk 0:00:04]} 48. Kh2 {[%clk 0:00:02]}  Qh5+ {[%clk 0:00:04]} 49. Kg1 {[%clk 0:00:02]}  Bd5 {[%clk 0:00:05]} 50. Kf1 {[%clk 0:00:01]}  Qd1# {[%clk 0:00:04]} 0-1


[Site "https://www.chess.com"]

[Event "Titled Tuesday Blitz May 16 Early 2023"]
[White "Johnson, Ben"]
[Black "Van Dael, Siem"]
[WhiteFideId "2010917"]
[BlackFideId "1049771"]
[WhiteElo "2133"]
[BlackElo "2336"]
[Result "0-1"]
[Round "04"]
[TimeControl "180+2"]
[Date "2023.05.16"]
[WhiteClock "0:00:43"]
[BlackClock "0:00:47"]

1. Nf3 {[%clk 0:03:00]}  Nf6 {[%clk 0:02:57]} 2. g3 {[%clk 0:02:58]}  g6 {[%clk 0:02:57]} 3. Bg2 {[%clk 0:02:59]}  Bg7 {[%clk 0:02:57]} 4. O-O {[%clk 0:02:59]}  O-O {[%clk 0:02:58]} 5. d4 {[%clk 0:02:59]}  d6 {[%clk 0:02:59]} 6. Nc3 {[%clk 0:02:52]}  Nc6 {[%clk 0:02:57]} 7. e4 {[%clk 0:02:52]}  e5 {[%clk 0:02:56]} 8. d5 {[%clk 0:02:48]}  Ne7 {[%clk 0:02:56]} 9. h3 {[%clk 0:02:46]}  c6 {[%clk 0:02:56]} 10. dxc6 {[%clk 0:02:44]}  bxc6 {[%clk 0:02:54]} 11. Be3 {[%clk 0:02:39]}  Ba6 {[%clk 0:02:49]} 12. Re1 {[%clk 0:02:37]}  Rb8 {[%clk 0:02:42]} 13. b3 {[%clk 0:02:19]}  Qc7 {[%clk 0:02:39]} 14. Qd2 {[%clk 0:02:12]}  d5 {[%clk 0:02:32]} 15. Bc5 {[%clk 0:02:07]}  d4 {[%clk 0:02:27]} 16. Na4 {[%clk 0:02:05]}  Rfe8 {[%clk 0:02:24]} 17. Nxe5 {[%clk 0:01:48]}  Qxe5 {[%clk 0:02:15]} 18. f4 {[%clk 0:01:46]}  Qc7 {[%clk 0:02:02]} 19. Bxd4 {[%clk 0:01:42]}  Rbd8 {[%clk 0:01:58]} 20. Qc3 {[%clk 0:01:26]}  Nxe4 {[%clk 0:00:54]} 21. Rxe4 {[%clk 0:01:25]}  Rxd4 {[%clk 0:00:53]} 22. Rxd4 {[%clk 0:01:08]}  Nf5 {[%clk 0:00:52]} 23. Qxc6 {[%clk 0:00:53]}  Bxd4+ {[%clk 0:00:49]} 24. Kh2 {[%clk 0:00:53]}  Qxc6 {[%clk 0:00:48]} 25. Bxc6 {[%clk 0:00:43]}  Re2+ {[%clk 0:00:47]} 0-1


[Site "https://www.chess.com"]

[Event "Titled Tuesday Blitz May 16 Early 2023"]
[White "Pesotskiy, Mikhail"]
[Black "Lakshmi C"]
[WhiteFideId "34164453"]
[BlackFideId "25035347"]
[WhiteElo "2131"]
[BlackElo "1942"]
[Result "1-0"]
[Round "04"]
[TimeControl "180+2"]
[Date "2023.05.16"]
[WhiteClock "0:00:10"]
[BlackClock "0:00:00"]

1. d4 {[%clk 0:02:20]}  Nf6 {[%clk 0:02:54]} 2. c4 {[%clk 0:02:20]}  e6 {[%clk 0:02:54]} 3. Nc3 {[%clk 0:02:21]}  b6 {[%clk 0:02:52]} 4. e4 {[%clk 0:02:20]}  Bb4 {[%clk 0:02:49]} 5. e5 {[%clk 0:02:20]}  Ng8 {[%clk 0:02:35]} 6. Nf3 {[%clk 0:02:16]}  Ne7 {[%clk 0:02:26]} 7. Bd3 {[%clk 0:02:14]}  h6 {[%clk 0:02:24]} 8. O-O {[%clk 0:02:14]}  d5 {[%clk 0:02:22]} 9. cxd5 {[%clk 0:01:48]}  Bxc3 {[%clk 0:02:09]} 10. bxc3 {[%clk 0:01:49]}  exd5 {[%clk 0:02:05]} 11. Qc2 {[%clk 0:01:46]}  c5 {[%clk 0:02:03]} 12. Be3 {[%clk 0:01:42]}  c4 {[%clk 0:01:59]} 13. Be2 {[%clk 0:01:40]}  Bf5 {[%clk 0:01:59]} 14. Qd2 {[%clk 0:01:34]}  Nbc6 {[%clk 0:01:55]} 15. Nh4 {[%clk 0:01:34]}  Be6 {[%clk 0:01:52]} 16. f4 {[%clk 0:01:34]}  g6 {[%clk 0:01:50]} 17. Rf2 {[%clk 0:01:10]}  Qd7 {[%clk 0:01:46]} 18. Bd1 {[%clk 0:01:01]}  a6 {[%clk 0:01:42]} 19. Rb1 {[%clk 0:00:58]}  b5 {[%clk 0:01:39]} 20. a4 {[%clk 0:00:58]}  Na5 {[%clk 0:01:38]} 21. axb5 {[%clk 0:00:55]}  axb5 {[%clk 0:01:38]} 22. Qc1 {[%clk 0:00:42]}  Nf5 {[%clk 0:01:25]} 23. Nf3 {[%clk 0:00:40]}  Nxe3 {[%clk 0:00:59]} 24. Qxe3 {[%clk 0:00:41]}  Bf5 {[%clk 0:00:59]} 25. Rb4 {[%clk 0:00:40]}  Nc6 {[%clk 0:00:51]} 26. Rxb5 {[%clk 0:00:39]}  Ra1 {[%clk 0:00:50]} 27. Rf1 {[%clk 0:00:33]}  Bd3 {[%clk 0:00:45]} 28. Be2 {[%clk 0:00:33]}  Rxf1+ {[%clk 0:00:31]} 29. Bxf1 {[%clk 0:00:34]}  Bxf1 {[%clk 0:00:23]} 30. Kxf1 {[%clk 0:00:35]}  O-O {[%clk 0:00:22]} 31. f5 {[%clk 0:00:28]}  Ne7 {[%clk 0:00:17]} 32. Rb6 {[%clk 0:00:15]}  Nxf5 {[%clk 0:00:16]} 33. Qf4 {[%clk 0:00:16]}  Qa4 {[%clk 0:00:10]} 34. g4 {[%clk 0:00:16]}  Qd1+ {[%clk 0:00:09]} 35. Kf2 {[%clk 0:00:17]}  Qc2+ {[%clk 0:00:08]} 36. Kg1 {[%clk 0:00:17]}  Ng7 {[%clk 0:00:02]} 37. Qxh6 {[%clk 0:00:15]}  Qd1+ {[%clk 0:00:02]} 38. Kg2 {[%clk 0:00:15]}  Qc2+ {[%clk 0:00:01]} 39. Kg3 {[%clk 0:00:16]}  Qxc3 {[%clk 0:00:00]} 40. h4 {[%clk 0:00:10]} 1-0


[Site "https://www.chess.com"]

[Event "Titled Tuesday Blitz May 16 Early 2023"]
[White "Mogirzan, Matei-Valeriu"]
[Black "ritanovikova"]
[WhiteFideId "1257455"]
[WhiteElo "1733"]
[BlackElo "2109"]
[Result "0-1"]
[Round "04"]
[TimeControl "180+2"]
[Date "2023.05.16"]
[WhiteClock "0:00:38"]
[BlackClock "0:00:39"]

1. e4 {[%clk 0:03:00]}  d5 {[%clk 0:02:59]} 2. exd5 {[%clk 0:02:58]}  Qxd5 {[%clk 0:03:00]} 3. Nc3 {[%clk 0:02:58]}  Qd6 {[%clk 0:03:00]} 4. Nf3 {[%clk 0:02:58]}  Nf6 {[%clk 0:03:00]} 5. d4 {[%clk 0:02:57]}  a6 {[%clk 0:02:59]} 6. a3 {[%clk 0:02:49]}  Bg4 {[%clk 0:02:58]} 7. h3 {[%clk 0:02:41]}  Bh5 {[%clk 0:02:57]} 8. g4 {[%clk 0:02:37]}  Bg6 {[%clk 0:02:56]} 9. Ne5 {[%clk 0:02:34]}  Nc6 {[%clk 0:02:54]} 10. Bf4 {[%clk 0:02:19]}  Qxd4 {[%clk 0:02:45]} 11. Nxc6 {[%clk 0:02:14]}  Qxf4 {[%clk 0:02:42]} 12. Nb4 {[%clk 0:02:04]}  Ne4 {[%clk 0:02:26]} 13. Qe2 {[%clk 0:01:57]}  Nxc3 {[%clk 0:02:22]} 14. bxc3 {[%clk 0:01:49]}  Be4 {[%clk 0:02:19]} 15. Rg1 {[%clk 0:01:45]}  e6 {[%clk 0:02:01]} 16. Rg3 {[%clk 0:01:37]}  Bd6 {[%clk 0:01:36]} 17. Re3 {[%clk 0:01:20]}  Bxb4 {[%clk 0:01:25]} 18. axb4 {[%clk 0:01:15]}  Bg6 {[%clk 0:01:17]} 19. Qb5+ {[%clk 0:01:03]}  c6 {[%clk 0:00:57]} 20. Qxb7 {[%clk 0:00:56]}  O-O {[%clk 0:00:57]} 21. Rxa6 {[%clk 0:00:53]}  Rxa6 {[%clk 0:00:52]} 22. Bxa6 {[%clk 0:00:52]}  Bxc2 {[%clk 0:00:52]} 23. Qxc6 {[%clk 0:00:51]}  Rd8 {[%clk 0:00:48]} 24. Bd3 {[%clk 0:00:40]}  Bxd3 {[%clk 0:00:38]} 25. Rxd3 {[%clk 0:00:38]}  Qc1+ {[%clk 0:00:39]} 0-1


[Site "https://www.chess.com"]

[Event "Titled Tuesday Blitz May 16 Early 2023"]
[White "Necula, Iulian"]
[Black "FunnyDuck66"]
[WhiteFideId "1232380"]
[WhiteElo "1790"]
[BlackElo "2328"]
[Result "1-0"]
[Round "04"]
[TimeControl "180+2"]
[Date "2023.05.16"]
[WhiteClock "0:00:37"]
[BlackClock "0:00:00"]

1. d4 {[%clk 0:03:00]}  Nf6 {[%clk 0:02:56]} 2. Nc3 {[%clk 0:03:00]}  d5 {[%clk 0:02:55]} 3. Bf4 {[%clk 0:02:58]}  c6 {[%clk 0:02:56]} 4. e3 {[%clk 0:02:57]}  Bf5 {[%clk 0:02:55]} 5. Nf3 {[%clk 0:02:56]}  e6 {[%clk 0:02:55]} 6. Ne5 {[%clk 0:02:55]}  Bd6 {[%clk 0:02:53]} 7. g4 {[%clk 0:02:54]}  Bg6 {[%clk 0:02:52]} 8. h4 {[%clk 0:02:54]}  Bxe5 {[%clk 0:02:35]} 9. dxe5 {[%clk 0:02:53]}  Ne4 {[%clk 0:02:21]} 10. h5 {[%clk 0:02:42]}  Nxc3 {[%clk 0:02:18]} 11. bxc3 {[%clk 0:02:42]}  Be4 {[%clk 0:02:07]} 12. f3 {[%clk 0:02:42]}  Qa5 {[%clk 0:02:07]} 13. Kd2 {[%clk 0:02:35]}  Na6 {[%clk 0:02:04]} 14. fxe4 {[%clk 0:02:32]}  dxe4 {[%clk 0:02:05]} 15. Bxa6 {[%clk 0:02:30]}  bxa6 {[%clk 0:01:40]} 16. Ke2 {[%clk 0:02:10]}  Qxc3 {[%clk 0:01:36]} 17. Qd2 {[%clk 0:02:03]}  Qc4+ {[%clk 0:01:35]} 18. Kf2 {[%clk 0:02:02]}  Rd8 {[%clk 0:01:36]} 19. Qe2 {[%clk 0:01:57]}  Qc3 {[%clk 0:01:35]} 20. Rad1 {[%clk 0:01:53]}  O-O {[%clk 0:01:36]} 21. Rd6 {[%clk 0:01:48]}  Rxd6 {[%clk 0:01:30]} 22. exd6 {[%clk 0:01:47]}  e5 {[%clk 0:01:31]} 23. Bg3 {[%clk 0:01:39]}  f5 {[%clk 0:01:12]} 24. d7 {[%clk 0:01:28]}  f4 {[%clk 0:01:06]} 25. exf4 {[%clk 0:01:01]}  exf4 {[%clk 0:01:07]} 26. Bh4 {[%clk 0:00:47]}  e3+ {[%clk 0:01:01]} 27. Kf3 {[%clk 0:00:43]}  Qe5 {[%clk 0:00:05]} 28. Qd3 {[%clk 0:00:37]}  g5 {[%clk 0:00:00]} 29. hxg6 {[%clk 0:00:37]} 1-0


[Site "https://www.chess.com"]

[Event "Titled Tuesday Blitz May 16 Early 2023"]
[White "Kriti Mayur Patel"]
[Black "Mike24147"]
[WhiteFideId "35061780"]
[WhiteElo "1306"]
[BlackElo "2323"]
[Result "0-1"]
[Round "04"]
[TimeControl "180+2"]
[Date "2023.05.16"]
[WhiteClock "0:00:35"]
[BlackClock "0:00:19"]

1. e4 {[%clk 0:03:00]}  c5 {[%clk 0:02:58]} 2. d4 {[%clk 0:03:01]}  cxd4 {[%clk 0:02:57]} 3. c3 {[%clk 0:03:02]}  Nf6 {[%clk 0:02:57]} 4. e5 {[%clk 0:03:02]}  Nd5 {[%clk 0:02:57]} 5. Nf3 {[%clk 0:03:02]}  d6 {[%clk 0:02:56]} 6. exd6 {[%clk 0:03:01]}  Qxd6 {[%clk 0:02:56]} 7. Bc4 {[%clk 0:03:02]}  Nb6 {[%clk 0:02:52]} 8. Bb3 {[%clk 0:03:02]}  dxc3 {[%clk 0:02:51]} 9. Qxd6 {[%clk 0:02:54]}  exd6 {[%clk 0:02:51]} 10. Nxc3 {[%clk 0:02:55]}  Be6 {[%clk 0:02:49]} 11. Nb5 {[%clk 0:02:54]}  Na6 {[%clk 0:02:48]} 12. O-O {[%clk 0:02:53]}  Bxb3 {[%clk 0:02:40]} 13. axb3 {[%clk 0:02:52]}  f6 {[%clk 0:02:36]} 14. Be3 {[%clk 0:02:51]}  Kd7 {[%clk 0:02:35]} 15. Nxa7 {[%clk 0:02:49]}  Rxa7 {[%clk 0:02:29]} 16. Bxb6 {[%clk 0:02:49]}  Ra8 {[%clk 0:02:30]} 17. b4 {[%clk 0:02:48]}  Be7 {[%clk 0:02:28]} 18. b5 {[%clk 0:02:44]}  Nc7 {[%clk 0:02:27]} 19. Rac1 {[%clk 0:02:44]}  Nxb5 {[%clk 0:02:26]} 20. Rfd1 {[%clk 0:02:44]}  Ra6 {[%clk 0:02:25]} 21. Bc5 {[%clk 0:02:42]}  Rc6 {[%clk 0:02:20]} 22. Be3 {[%clk 0:02:38]}  Rhc8 {[%clk 0:02:19]} 23. Rxc6 {[%clk 0:02:35]}  bxc6 {[%clk 0:02:17]} 24. g3 {[%clk 0:02:36]}  d5 {[%clk 0:02:16]} 25. Bf4 {[%clk 0:02:33]}  Bd6 {[%clk 0:02:15]} 26. Be3 {[%clk 0:02:31]}  Ra8 {[%clk 0:02:14]} 27. Nh4 {[%clk 0:02:30]}  g6 {[%clk 0:02:13]} 28. Kg2 {[%clk 0:02:29]}  Ra2 {[%clk 0:02:12]} 29. Bc1 {[%clk 0:02:28]}  Be5 {[%clk 0:02:10]} 30. f4 {[%clk 0:02:17]}  Bd6 {[%clk 0:01:48]} 31. Rd3 {[%clk 0:02:14]}  Ra1 {[%clk 0:01:45]} 32. Be3 {[%clk 0:02:10]}  Rb1 {[%clk 0:01:37]} 33. b3 {[%clk 0:02:10]}  Bb4 {[%clk 0:01:31]} 34. f5 {[%clk 0:02:06]}  g5 {[%clk 0:01:29]} 35. Nf3 {[%clk 0:02:06]}  Bc3 {[%clk 0:01:28]} 36. g4 {[%clk 0:01:54]}  Rxb3 {[%clk 0:01:26]} 37. Nd4 {[%clk 0:01:47]}  Rb2+ {[%clk 0:01:16]} 38. Kg3 {[%clk 0:01:41]}  Bxd4 {[%clk 0:01:01]} 39. Bxd4 {[%clk 0:01:36]}  Nxd4 {[%clk 0:01:00]} 40. Rxd4 {[%clk 0:01:36]}  Kd6 {[%clk 0:00:58]} 41. Rd1 {[%clk 0:01:33]}  c5 {[%clk 0:00:56]} 42. Re1 {[%clk 0:01:34]}  Rb3+ {[%clk 0:00:46]} 43. Kf2 {[%clk 0:01:30]}  Rb4 {[%clk 0:00:45]} 44. Kg3 {[%clk 0:01:30]}  Re4 {[%clk 0:00:44]} 45. Ra1 {[%clk 0:01:30]}  h5 {[%clk 0:00:32]} 46. gxh5 {[%clk 0:01:18]}  Rh4 {[%clk 0:00:31]} 47. Ra6+ {[%clk 0:01:18]}  Ke5 {[%clk 0:00:32]} 48. Rc6 {[%clk 0:01:01]}  c4 {[%clk 0:00:28]} 49. Rc5 {[%clk 0:00:48]}  Rxh5 {[%clk 0:00:28]} 50. h3 {[%clk 0:00:45]}  Rh4 {[%clk 0:00:25]} 51. Ra5 {[%clk 0:00:43]}  Rd4 {[%clk 0:00:25]} 52. Rc5 {[%clk 0:00:40]}  Kxf5 {[%clk 0:00:25]} 53. Rc7 {[%clk 0:00:40]}  Rd3+ {[%clk 0:00:22]} 54. Kh2 {[%clk 0:00:39]}  c3 {[%clk 0:00:23]} 55. Kg2 {[%clk 0:00:38]}  d4 {[%clk 0:00:21]} 56. Rc5+ {[%clk 0:00:37]}  Kf4 {[%clk 0:00:21]} 57. Rc4 {[%clk 0:00:37]}  Rd2+ {[%clk 0:00:21]} 58. Kh1 {[%clk 0:00:36]}  c2 {[%clk 0:00:21]} 59. h4 {[%clk 0:00:36]}  Rd1+ {[%clk 0:00:19]} 60. Kh2 {[%clk 0:00:34]}  c1=Q {[%clk 0:00:20]} 61. Rxc1 {[%clk 0:00:33]}  Rxc1 {[%clk 0:00:21]} 62. hxg5 {[%clk 0:00:34]}  fxg5 {[%clk 0:00:20]} 63. Kg2 {[%clk 0:00:34]}  Rc2+ {[%clk 0:00:20]} 64. Kh3 {[%clk 0:00:35]}  g4+ {[%clk 0:00:18]} 65. Kh4 {[%clk 0:00:35]}  Rh2# {[%clk 0:00:19]} 0-1


[Site "https://www.chess.com"]

[Event "Titled Tuesday Blitz May 16 Early 2023"]
[White "Manon-og, Ramon Jr."]
[Black "Hartikainen, Jarmo"]
[WhiteFideId "5200776"]
[BlackFideId "503134"]
[WhiteElo "2310"]
[BlackElo "2087"]
[Result "1-0"]
[Round "04"]
[TimeControl "180+2"]
[Date "2023.05.16"]
[WhiteClock "0:01:08"]
[BlackClock "0:00:00"]

1. e4 {[%clk 0:03:00]}  c5 {[%clk 0:02:59]} 2. Nf3 {[%clk 0:03:00]}  Nc6 {[%clk 0:02:59]} 3. Bb5 {[%clk 0:03:00]}  g6 {[%clk 0:02:59]} 4. O-O {[%clk 0:02:59]}  Bg7 {[%clk 0:02:59]} 5. Qe2 {[%clk 0:02:59]}  Nf6 {[%clk 0:02:56]} 6. Nc3 {[%clk 0:02:55]}  Nd4 {[%clk 0:02:49]} 7. Nxd4 {[%clk 0:02:55]}  cxd4 {[%clk 0:02:50]} 8. Nd1 {[%clk 0:02:55]}  O-O {[%clk 0:02:42]} 9. d3 {[%clk 0:02:55]}  b6 {[%clk 0:02:23]} 10. f4 {[%clk 0:02:53]}  Bb7 {[%clk 0:02:21]} 11. Nf2 {[%clk 0:02:53]}  d6 {[%clk 0:02:09]} 12. b3 {[%clk 0:02:53]}  a6 {[%clk 0:02:02]} 13. Bc4 {[%clk 0:02:51]}  b5 {[%clk 0:02:02]} 14. e5 {[%clk 0:02:51]}  Ne8 {[%clk 0:01:26]} 15. Bd2 {[%clk 0:02:13]}  bxc4 {[%clk 0:01:23]} 16. bxc4 {[%clk 0:02:14]}  dxe5 {[%clk 0:01:22]} 17. fxe5 {[%clk 0:02:14]}  Nc7 {[%clk 0:01:21]} 18. Ng4 {[%clk 0:02:13]}  Ne6 {[%clk 0:01:18]} 19. Nh6+ {[%clk 0:02:13]}  Bxh6 {[%clk 0:01:11]} 20. Bxh6 {[%clk 0:02:14]}  Ng7 {[%clk 0:01:07]} 21. Rab1 {[%clk 0:02:09]}  Qd7 {[%clk 0:01:06]} 22. Rf2 {[%clk 0:02:05]}  Bc6 {[%clk 0:00:50]} 23. Rbf1 {[%clk 0:01:58]}  f5 {[%clk 0:00:41]} 24. exf6 {[%clk 0:01:55]}  Rxf6 {[%clk 0:00:40]} 25. Rxf6 {[%clk 0:01:53]}  exf6 {[%clk 0:00:40]} 26. Rxf6 {[%clk 0:01:54]}  Re8 {[%clk 0:00:22]} 27. Qf2 {[%clk 0:01:53]}  Bb7 {[%clk 0:00:15]} 28. h3 {[%clk 0:01:46]}  Qe7 {[%clk 0:00:16]} 29. Qxd4 {[%clk 0:01:35]}  Qe1+ {[%clk 0:00:16]} 30. Kh2 {[%clk 0:01:34]}  Qe5+ {[%clk 0:00:14]} 31. Qxe5 {[%clk 0:01:32]}  Rxe5 {[%clk 0:00:15]} 32. Rb6 {[%clk 0:01:32]}  Re7 {[%clk 0:00:12]} 33. Bg5 {[%clk 0:01:32]}  Rd7 {[%clk 0:00:11]} 34. Bf6 {[%clk 0:01:31]}  Nf5 {[%clk 0:00:11]} 35. Bg5 {[%clk 0:01:25]}  Kf7 {[%clk 0:00:11]} 36. c5 {[%clk 0:01:23]}  h6 {[%clk 0:00:10]} 37. c6 {[%clk 0:01:22]}  Bxc6 {[%clk 0:00:09]} 38. Bxh6 {[%clk 0:01:16]}  Nxh6 {[%clk 0:00:08]} 39. Rxc6 {[%clk 0:01:16]}  Ra7 {[%clk 0:00:08]} 40. g4 {[%clk 0:01:15]}  Kg7 {[%clk 0:00:06]} 41. Kg3 {[%clk 0:01:15]}  Nf7 {[%clk 0:00:06]} 42. d4 {[%clk 0:01:15]}  Nd8 {[%clk 0:00:05]} 43. Rd6 {[%clk 0:01:14]}  Nf7 {[%clk 0:00:04]} 44. Rc6 {[%clk 0:01:14]}  Nd8 {[%clk 0:00:04]} 45. Rc8 {[%clk 0:01:14]}  Nf7 {[%clk 0:00:04]} 46. c4 {[%clk 0:01:13]}  Kf6 {[%clk 0:00:04]} 47. c5 {[%clk 0:01:12]}  Ke7 {[%clk 0:00:04]} 48. d5 {[%clk 0:01:11]}  Ne5 {[%clk 0:00:04]} 49. c6 {[%clk 0:01:09]}  Kd6 {[%clk 0:00:03]} 50. Rd8+ {[%clk 0:01:09]}  Kc7 {[%clk 0:00:03]} 51. Re8 {[%clk 0:01:08]}  Nc4 {[%clk 0:00:03]} 52. Re7+ {[%clk 0:01:08]}  Kd6 {[%clk 0:00:02]} 53. Rxa7 {[%clk 0:01:08]}  Kxd5 {[%clk 0:00:00]} 54. c7 {[%clk 0:01:08]} 1-0


[Site "https://www.chess.com"]